fUSD/lending_fUSD_20250217
["ID","MTS","AMOUNT","RATE_DAILY","PERIOD"]
[353387514,1739808654229,-587.05,0.0001378,2]
[353387515,1739808654239,-500.0,0.0001378,2]
[353387516,1739808654248,-500.0,0.0001378,2]
[353387517,1739808654258,-500.0,0.0001378,2]
[353387518,1739808654268,-500.0,0.0001378,2]
[353387519,1739808654278,-500.0,0.0001378,2]
[353387520,1739808654287,-500.0,0.0001378,2]
[353387521,1739808654298,-500.0,0.0001378,2]
[353387522,1739808654310,-500.0,0.0001378,2]
[353387523,1739808654319,-500.0,0.0001378,2]
[353387524,1739808654329,-500.0,0.0001378,2]
[353387525,1739808654340,-500.0,0.0001378,2]
[353387526,1739808654350,-525.62,0.0001378,2]
[353387527,1739808654360,-500.0,0.0001378,2]
[353387528,1739808654370,-502.238208,0.0001378,2]
[353387529,1739808654381,-500.0,0.0001378,2]
[353387530,1739808654391,-500.0,0.0001378,2]
[353387531,1739808654400,-500.0,0.0001378,2]
[353387532,1739808654410,-500.0,0.0001378,2]
[353387533,1739808654420,-500.0,0.0001378,2]
[353387534,1739808654430,-500.0,0.0001378,2]
[353387535,1739808654439,-500.0,0.0001378,2]
[353387536,1739808654448,-500.0,0.0001378,2]
[353387537,1739808654457,-500.0,0.0001378,2]
[353387538,1739808654468,-500.0,0.0001378,2]
[353387539,1739808654478,-168.41,0.0001378,2]
[353387540,1739808654487,-199.96356583,0.0001378,2]
[353387541,1739808654498,-500.0,0.0001378,2]
[353387542,1739808654507,-500.0,0.0001378,2]
[353387543,1739808654517,-500.0,0.0001378,2]
[353387544,1739808654527,-500.0,0.0001378,2]
[353387545,1739808654537,-500.0,0.0001378,2]
[353387546,1739808654551,-500.0,0.0001378,2]
[353387547,1739808654561,-500.0,0.0001378,2]
[353387548,1739808654571,-500.0,0.0001378,2]
[353387549,1739808654581,-500.0,0.0001378,2]
[353387550,1739808654590,-500.0,0.0001378,2]
[353387551,1739808654600,-500.0,0.0001378,2]
[353387552,1739808654610,-500.0,0.0001378,2]
[353387553,1739808654619,-500.0,0.0001378,2]
[353387554,1739808654629,-500.0,0.0001378,2]
[353387555,1739808654639,-500.0,0.0001378,2]
[353387556,1739808654648,-500.0,0.0001378,2]
[353387557,1739808654658,-500.0,0.0001378,2]
[353387558,1739808654668,-531.18,0.0001378,2]
[353387559,1739808654846,-500.0,0.0001378,2]
[353387560,1739808654857,-500.0,0.0001378,2]
[353387561,1739808654866,-500.0,0.0001378,2]
[353387562,1739808654876,-500.0,0.0001378,2]
[353387563,1739808654886,-500.0,0.0001378,2]
[353387564,1739808654896,-500.0,0.0001378,2]
[353387565,1739808654905,-531.89,0.0001378,2]
[353387566,1739808654915,-500.0,0.0001378,2]
[353387567,1739808654925,-500.0,0.0001378,2]
[353387568,1739808654934,-500.0,0.0001378,2]
[353387569,1739808654944,-500.0,0.0001378,2]
[353387570,1739808654953,-500.0,0.0001378,2]
[353387571,1739808654963,-500.0,0.0001378,2]
[353387572,1739808654973,-426.609506,0.0001378,2]
[353387573,1739808654983,-500.0,0.0001378,2]
[353387574,1739808654992,-500.0,0.0001378,2]
[353387575,1739808655001,-500.0,0.0001378,2]
[353387576,1739808655011,-500.0,0.0001378,2]
[353387577,1739808655021,-500.0,0.0001378,2]
[353387578,1739808655031,-500.0,0.0001378,2]
[353387579,1739808655041,-541.83,0.0001378,2]
[353387580,1739808655054,-228.3979844,0.0001378,2]
[353387581,1739808655064,-500.0,0.0001378,2]
[353387582,1739808655073,-500.0,0.0001378,2]
[353387583,1739808655083,-500.0,0.0001378,2]
[353387584,1739808655092,-500.0,0.0001378,2]
[353387585,1739808655102,-500.0,0.0001378,2]
[353387586,1739808655112,-500.0,0.0001378,2]
[353387587,1739808655121,-500.0,0.0001378,2]
[353387588,1739808655132,-512.94,0.0001378,2]
[353387589,1739808655141,-500.0,0.0001378,2]
[353387590,1739808655150,-500.0,0.0001378,2]
[353387591,1739808655160,-500.0,0.0001378,2]
[353387592,1739808655169,-500.0,0.0001378,2]
[353387593,1739808655179,-500.0,0.0001378,2]
[353387594,1739808655188,-500.0,0.0001378,2]
[353387595,1739808655198,-683.15,0.0001378,2]
[353387596,1739808655208,-500.0,0.0001378,2]
[353387597,1739808655217,-500.0,0.0001378,2]
[353387598,1739808655228,-500.0,0.0001378,2]
[353387599,1739808655237,-500.0,0.0001378,2]
[353387600,1739808655247,-500.0,0.0001378,2]
[353387601,1739808655256,-500.0,0.0001378,2]
[353387602,1739808655266,-500.0,0.0001378,2]
[353387603,1739808655276,-500.0,0.0001378,2]
[353387604,1739808655287,-500.0,0.0001378,2]
[353387605,1739808655303,-500.0,0.0001378,2]
[353387606,1739808655313,-500.0,0.0001378,2]
[353387607,1739808655323,-500.0,0.0001378,2]
[353387608,1739808655335,-500.0,0.0001378,2]
[353387609,1739808655345,-1042.38,0.0001378,2]
[353387610,1739808655354,-500.0,0.0001378,2]
[353387611,1739808655364,-528.06,0.0001378,2]
[353387612,1739808655375,-385.740435,0.0001378,2]
[353387613,1739808655385,-500.0,0.0001378,2]
[353387614,1739808655394,-500.0,0.0001378,2]
[353387615,1739808655405,-524.48,0.0001378,2]
[353387616,1739808655414,-500.0,0.0001378,2]
[353387617,1739808655425,-500.0,0.0001378,2]
[353387618,1739808655435,-500.0,0.0001378,2]
[353387619,1739808655444,-500.0,0.0001378,2]
[353387620,1739808655453,-500.0,0.0001378,2]
[353387621,1739808655463,-500.0,0.0001378,2]
[353387622,1739808655473,-500.0,0.0001378,2]
[353387623,1739808655483,-500.0,0.0001378,2]
[353387624,1739808655492,-500.0,0.0001378,2]
[353387625,1739808655502,-614.14,0.0001378,2]
[353387626,1739808655511,-500.0,0.0001378,2]
[353387627,1739808655521,-212.69284978,0.0001378,2]
[353387628,1739808655530,-500.0,0.0001378,2]
[353387629,1739808655540,-500.0,0.0001378,2]
[353387630,1739808655551,-500.0,0.0001378,2]
[353387631,1739808655561,-500.0,0.0001378,2]
[353387632,1739808655571,-500.0,0.0001378,2]
[353387633,1739808655581,-500.0,0.0001378,2]
[353387634,1739808655592,-500.0,0.0001378,2]
[353387635,1739808655601,-500.0,0.0001378,2]
[353387636,1739808655611,-518.77,0.0001378,2]
[353387637,1739808655621,-500.0,0.0001378,2]
[353387638,1739808655630,-424.95368196,0.0001378,2]
[353387639,1739808655640,-500.0,0.0001378,2]
[353387640,1739808655649,-500.0,0.0001378,2]
[353387641,1739808655659,-500.0,0.0001378,2]
[353387642,1739808655668,-500.0,0.0001378,2]
[353387643,1739808655678,-500.0,0.0001378,2]
[353387644,1739808655687,-500.0,0.0001378,2]
[353387645,1739808655696,-500.0,0.0001378,2]
[353387646,1739808655706,-500.0,0.0001378,2]
[353387647,1739808655716,-500.0,0.0001378,2]
[353387648,1739808655725,-500.0,0.0001378,2]
[353387649,1739808655734,-500.0,0.0001378,2]
[353387650,1739808655745,-500.0,0.0001378,2]
[353387651,1739808655755,-500.0,0.0001378,2]
[353387652,1739808655765,-500.0,0.0001378,2]
[353387653,1739808655774,-500.0,0.0001378,2]
[353387654,1739808655784,-500.0,0.0001378,2]
[353387655,1739808655793,-500.0,0.0001378,2]
[353387656,1739808655805,-500.0,0.0001378,2]
[353387657,1739808655815,-274.24,0.0001378,2]
[353387658,1739808655824,-500.0,0.0001378,2]
[353387659,1739808655833,-500.0,0.0001378,2]
[353387660,1739808655842,-500.0,0.0001378,2]
[353387661,1739808655851,-500.0,0.0001378,2]
[353387662,1739808655860,-500.0,0.0001378,2]
[353387663,1739808655870,-500.0,0.0001378,2]
[353387664,1739808655879,-500.0,0.0001378,2]
[353387665,1739808655888,-500.0,0.0001378,2]
[353387666,1739808655897,-500.0,0.0001378,2]
[353387667,1739808655907,-559.73,0.0001378,2]
[353387668,1739808655916,-500.0,0.0001378,2]
[353387669,1739808655925,-500.0,0.0001378,2]
[353387670,1739808655935,-500.0,0.0001378,2]
[353387671,1739808655947,-500.0,0.0001378,2]
[353387672,1739808655957,-500.0,0.0001378,2]
[353387673,1739808655966,-500.0,0.0001378,2]
[353387674,1739808655976,-500.0,0.0001378,2]
[353387675,1739808655986,-500.0,0.0001378,2]
[353387676,1739808655995,-500.0,0.0001378,2]
[353387677,1739808656005,-500.0,0.0001378,2]
[353387678,1739808656014,-500.0,0.0001378,2]
[353387679,1739808656024,-500.0,0.0001378,2]
[353387680,1739808656033,-500.0,0.0001378,2]
[353387681,1739808656043,-500.0,0.0001378,2]
[353387682,1739808656054,-500.0,0.0001378,2]
[353387683,1739808656064,-500.0,0.0001378,2]
[353387684,1739808656073,-500.0,0.0001378,2]
[353387685,1739808656082,-569.9,0.0001378,2]
[353387686,1739808656092,-500.0,0.0001378,2]
[353387687,1739808656101,-500.0,0.0001378,2]
[353387688,1739808656110,-500.0,0.0001378,2]
[353387689,1739808656120,-538.35,0.0001378,2]
[353387690,1739808656129,-500.0,0.0001378,2]
[353387691,1739808656139,-500.0,0.0001378,2]
[353387692,1739808656148,-500.0,0.0001378,2]
[353387693,1739808656157,-523.5,0.0001378,2]
[353387694,1739808656167,-500.0,0.0001378,2]
[353387695,1739808656176,-500.0,0.0001378,2]
[353387696,1739808656185,-500.0,0.0001378,2]
[353387697,1739808656195,-500.0,0.0001378,2]
[353387698,1739808656205,-500.0,0.0001378,2]
[353387699,1739808656213,-500.0,0.0001378,2]
[353387700,1739808656223,-500.0,0.0001378,2]
[353387701,1739808656232,-500.0,0.0001378,2]
[353387702,1739808656241,-500.0,0.0001378,2]
[353387703,1739808656250,-500.0,0.0001378,2]
[353387704,1739808656259,-500.0,0.0001378,2]
[353387705,1739808656268,-500.0,0.0001378,2]
[353387706,1739808656278,-500.0,0.0001378,2]
[353387707,1739808656288,-500.0,0.0001378,2]
[353387708,1739808656301,-500.0,0.0001378,2]
[353387709,1739808656310,-500.0,0.0001378,2]
[353387710,1739808656320,-503.77257148,0.0001378,2]
[353387711,1739808656329,-555.61,0.0001378,2]
[353387712,1739808656338,-820.32,0.0001378,2]
[353387713,1739808656349,-500.0,0.0001378,2]
[353387714,1739808656359,-500.0,0.0001378,2]
[353387715,1739808656369,-503.45999476,0.0001378,2]
[353387716,1739808656379,-262.20671247,0.0001378,2]
[353387717,1739808656389,-500.0,0.0001378,2]
[353387718,1739808656399,-500.0,0.0001378,2]
[353387719,1739808656409,-500.0,0.0001378,2]
[353387720,1739808656419,-500.0,0.0001378,2]
[353387721,1739808656428,-500.0,0.0001378,2]
[353387722,1739808656439,-500.0,0.0001378,2]
[353387723,1739808656449,-500.0,0.0001378,2]
[353387724,1739808656459,-500.0,0.0001378,2]
[353387725,1739808656469,-612.03,0.0001378,2]
[353387726,1739808656478,-500.0,0.0001378,2]
[353387727,1739808656488,-500.0,0.0001378,2]
[353387728,1739808656498,-500.0,0.0001378,2]
[353387729,1739808656507,-500.0,0.0001378,2]
[353387730,1739808656518,-500.0,0.0001378,2]
[353387731,1739808656529,-500.0,0.0001378,2]
[353387732,1739808656539,-500.0,0.0001378,2]
[353387733,1739808656553,-543.8250078,0.0001378,2]
[353387734,1739808656564,-500.0,0.0001378,2]
[353387735,1739808656575,-590.37,0.0001378,2]
[353387736,1739808656586,-289.33777282,0.0001378,2]
[353387737,1739808656598,-500.0,0.0001378,2]
[353387738,1739808656610,-500.0,0.0001378,2]
[353387739,1739808656623,-500.0,0.0001378,2]
[353387740,1739808656634,-500.0,0.0001378,2]
[353387741,1739808656644,-500.0,0.0001378,2]
[353387742,1739808656656,-500.0,0.0001378,2]
[353387743,1739808656666,-500.0,0.0001378,2]
[353387744,1739808656676,-500.0,0.0001378,2]
[353387745,1739808656686,-500.0,0.0001378,2]
[353387746,1739808656695,-500.0,0.0001378,2]
[353387747,1739808656706,-500.0,0.0001378,2]
[353387748,1739808656715,-506.49,0.0001378,2]
[353387749,1739808656725,-500.0,0.0001378,2]
[353387750,1739808656736,-500.0,0.0001378,2]
[353387751,1739808656746,-500.0,0.0001378,2]
[353387752,1739808656757,-502.7174958,0.0001378,2]
[353387753,1739808656767,-633.0,0.0001378,2]
[353387754,1739808656777,-500.0,0.0001378,2]
[353387755,1739808656787,-500.0,0.0001378,2]
[353387756,1739808656801,-500.0,0.0001378,2]
[353387757,1739808656812,-500.0,0.0001378,2]
[353387758,1739808656822,-500.0,0.0001378,2]
[353387759,1739808656831,-500.0,0.0001378,2]
[353387760,1739808656840,-500.0,0.0001378,2]
[353387761,1739808656850,-500.0,0.0001378,2]
[353387762,1739808656860,-603.72,0.0001378,2]
[353387763,1739808656870,-524.42,0.0001378,2]
[353387764,1739808656880,-758.79,0.0001378,2]
[353387765,1739808656889,-500.0,0.0001378,2]
[353387766,1739808656899,-1073.87,0.0001378,2]
[353387767,1739808656909,-500.0,0.0001378,2]
[353387768,1739808656919,-500.0,0.0001378,2]
[353387769,1739808656928,-500.0,0.0001378,2]
[353387770,1739808656938,-500.0,0.0001378,2]
[353387771,1739808656947,-500.0,0.0001378,2]
[353387772,1739808656956,-500.0,0.0001378,2]
[353387773,1739808656966,-500.0,0.0001378,2]
[353387774,1739808656975,-380.13848496,0.0001378,2]
[353387775,1739808656985,-500.0,0.0001378,2]
[353387776,1739808656995,-521.99,0.0001378,2]
[353387777,1739808657004,-500.0,0.0001378,2]
[353387778,1739808657014,-508.6420564,0.0001378,2]
[353387779,1739808657023,-500.0,0.0001378,2]
[353387780,1739808657033,-500.0,0.0001378,2]
[353387781,1739808657042,-500.0,0.0001378,2]
[353387782,1739808657055,-500.0,0.0001378,2]
[353387783,1739808657065,-578.99,0.0001378,2]
[353387784,1739808657075,-500.0,0.0001378,2]
[353387785,1739808657085,-949.81,0.0001378,2]
[353387786,1739808657095,-500.0,0.0001378,2]
[353387787,1739808657107,-500.0,0.0001378,2]
[353387788,1739808657117,-500.0,0.0001378,2]
[353387789,1739808657127,-500.0,0.0001378,2]
[353387790,1739808657138,-500.0,0.0001378,2]
[353387791,1739808657148,-732.59,0.0001378,2]
[353387792,1739808657160,-500.0,0.0001378,2]
[353387793,1739808657171,-500.0,0.0001378,2]
[353387794,1739808657181,-500.0,0.0001378,2]
[353387795,1739808657193,-500.0,0.0001378,2]
[353387796,1739808657204,-500.0,0.0001378,2]
[353387797,1739808657215,-500.0,0.0001378,2]
[353387798,1739808657225,-674.25,0.0001378,2]
[353387799,1739808657235,-580.73,0.0001378,2]
[353387800,1739808657246,-500.0,0.0001378,2]
[353387801,1739808657257,-540.38,0.0001378,2]
[353387802,1739808657267,-500.0,0.0001378,2]
[353387803,1739808657277,-526.58,0.0001378,2]
[353387804,1739808657287,-500.0,0.0001378,2]
[353387805,1739808657357,-1547.95,0.0001378,2]
[353387806,1739808657370,-192.93918251,0.0001378,2]
[353387807,1739808657380,-968.22,0.0001378,2]
[353387808,1739808657390,-500.0,0.0001378,2]
[353387809,1739808657400,-500.0,0.0001378,2]
[353387810,1739808657409,-721.79,0.0001378,2]
[353387811,1739808657419,-500.0,0.0001378,2]
[353387812,1739808657429,-500.0,0.0001378,2]
[353387813,1739808657438,-500.0,0.0001378,2]
[353387814,1739808657448,-500.0,0.0001378,2]
[353387815,1739808657458,-500.0,0.0001378,2]
[353387816,1739808657467,-494.17237883,0.0001378,2]
[353387817,1739808657477,-500.0,0.0001378,2]
[353387818,1739808657486,-1218.87,0.0001378,2]
[353387819,1739808657495,-937.07,0.0001378,2]
[353387820,1739808657505,-500.0,0.0001378,2]
[353387821,1739808657514,-500.0,0.0001378,2]
[353387822,1739808657524,-500.0,0.0001378,2]
[353387823,1739808657534,-500.0,0.0001378,2]
[353387824,1739808657544,-500.0,0.0001378,2]
[353387825,1739808657558,-840.26,0.0001378,2]
[353387826,1739808657568,-500.0,0.0001378,2]
[353387827,1739808657577,-500.0,0.0001378,2]
[353387828,1739808657586,-1047.93,0.0001378,2]
[353387829,1739808657596,-650.73,0.0001378,2]
[353387830,1739808657605,-500.0,0.0001378,2]
[353387831,1739808657615,-847.87,0.0001378,2]
[353387832,1739808657624,-500.0,0.0001378,2]
[353387833,1739808657634,-500.0,0.0001378,2]
[353387834,1739808657643,-500.0,0.0001378,2]
[353387835,1739808657652,-516.01,0.0001378,2]
[353387836,1739808657662,-510.83,0.0001378,2]
[353387837,1739808657671,-503.68277338,0.0001378,2]
[353387838,1739808657681,-750.18,0.0001378,2]
[353387839,1739808657691,-553.39,0.0001378,2]
[353387840,1739808657702,-1008.95,0.0001378,2]
[353387841,1739808657712,-816.46,0.0001378,2]
[353387842,1739808657721,-500.0,0.0001378,2]
[353387843,1739808657732,-900.2,0.0001378,2]
[353387844,1739808657742,-500.0,0.0001378,2]
[353387845,1739808657753,-983.81,0.0001378,2]
[353387846,1739808657764,-632.76,0.0001378,2]
[353387847,1739808657774,-505.96579421,0.0001378,2]
[353387848,1739808657784,-500.0,0.0001378,2]
[353387849,1739808657794,-500.0,0.0001378,2]
[353387850,1739808657808,-500.0,0.0001378,2]
[353387851,1739808657818,-651.22,0.0001378,2]
[353387852,1739808657827,-805.21,0.0001378,2]
[353387853,1739808657838,-500.0,0.0001378,2]
[353387854,1739808657847,-500.0,0.0001378,2]
[353387855,1739808657856,-500.0,0.0001378,2]
[353387856,1739808657865,-660.48,0.0001378,2]
[353387857,1739808657874,-500.0,0.0001378,2]
[353387858,1739808657883,-1280.9,0.0001378,2]
[353387859,1739808657891,-500.0,0.0001378,2]
[353387860,1739808657900,-2417.31,0.0001378,2]
[353387861,1739808657909,-1133.64,0.0001378,2]
[353387862,1739808657919,-500.0,0.0001378,2]
[353387863,1739808657929,-2006.91,0.0001378,2]
[353387864,1739808657940,-832.36,0.0001378,2]
[353387865,1739808657949,-500.0,0.0001378,2]
[353387866,1739808657959,-500.0,0.0001378,2]
[353387867,1739808657968,-500.0,0.0001378,2]
[353387868,1739808657980,-1188.46,0.0001378,2]
[353387869,1739808657989,-500.0,0.0001378,2]
[353387870,1739808657999,-500.0,0.0001378,2]
[353387871,1739808658010,-1022.75,0.0001378,2]
[353387872,1739808658020,-500.0,0.0001378,2]
[353387873,1739808658029,-521.56,0.0001378,2]
[353387874,1739808658039,-840.29,0.0001378,2]
[353387875,1739808658051,-501.63340414,0.0001378,2]
[353387876,1739808658061,-500.0,0.0001378,2]
[353387877,1739808658070,-306.42849422,0.0001378,2]
[353387878,1739808658080,-500.0,0.0001378,2]
[353387879,1739808658091,-500.0,0.0001378,2]
[353387880,1739808658101,-500.0,0.0001378,2]
[353387881,1739808658111,-500.0,0.0001378,2]
[353387882,1739808658121,-500.0,0.0001378,2]
[353387883,1739808658132,-500.0,0.0001378,2]
[353387884,1739808658142,-1694.49,0.0001378,2]
[353387885,1739808658153,-500.0,0.0001378,2]
[353387886,1739808658163,-500.0,0.0001378,2]
[353387887,1739808658173,-500.0,0.0001378,2]
[353387888,1739808658182,-500.0,0.0001378,2]
[353387889,1739808658192,-500.0,0.0001378,2]
[353387890,1739808658201,-544.77,0.0001378,2]
[353387891,1739808658210,-1015.96,0.0001378,2]
[353387892,1739808658219,-500.0,0.0001378,2]
[353387893,1739808658229,-1086.82,0.0001378,2]
[353387894,1739808658240,-500.0,0.0001378,2]
[353387895,1739808658251,-2321.33,0.0001378,2]
[353387896,1739808658260,-500.0,0.0001378,2]
[353387897,1739808658270,-1100.32,0.0001378,2]
[353387898,1739808658280,-500.0,0.0001378,2]
[353387899,1739808658292,-500.0,0.0001378,2]
[353387900,1739808658308,-500.0,0.0001378,2]
[353387901,1739808658318,-577.60250942,0.0001378,2]
[353387902,1739808658328,-711.15,0.0001378,2]
[353387903,1739808658340,-511.92,0.0001378,2]
[353387904,1739808658351,-500.0,0.0001378,2]
[353387905,1739808658360,-753.28,0.0001378,2]
[353387906,1739808658370,-2485.22,0.0001378,2]
[353387907,1739808658381,-500.0,0.0001378,2]
[353387908,1739808658391,-532.36655077,0.0001378,2]
[353387909,1739808658402,-976.24,0.0001378,2]
[353387910,1739808658413,-504.39,0.0001378,2]
[353387911,1739808658423,-500.0,0.0001378,2]
[353387912,1739808658433,-500.0,0.0001378,2]
[353387913,1739808658443,-500.0,0.0001378,2]
[353387914,1739808658456,-502.77863545,0.0001378,2]
[353387915,1739808658466,-500.0,0.0001378,2]
[353387916,1739808658477,-500.0,0.0001378,2]
[353387917,1739808658487,-876.02,0.0001378,2]
[353387918,1739808658497,-500.0,0.0001378,2]
[353387919,1739808658507,-754.85,0.0001378,2]
[353387920,1739808658517,-500.0,0.0001378,2]
[353387921,1739808658527,-500.0,0.0001378,2]
[353387922,1739808658536,-970.02,0.0001378,2]
[353387923,1739808658546,-838.42,0.0001378,2]
[353387924,1739808658560,-500.0,0.0001378,2]
[353387925,1739808658569,-500.0,0.0001378,2]
[353387926,1739808658579,-402.92788431,0.0001378,2]
[353387927,1739808658588,-500.0,0.0001378,2]
[353387928,1739808658598,-500.0,0.0001378,2]
[353387929,1739808658608,-500.0,0.0001378,2]
[353387930,1739808658618,-500.0,0.0001378,2]
[353387931,1739808658628,-500.0,0.0001378,2]
[353387932,1739808658637,-1415.29,0.0001378,2]
[353387933,1739808658647,-500.0,0.0001378,2]
[353387934,1739808658657,-584.84,0.0001378,2]
[353387935,1739808658666,-1411.31,0.0001378,2]
[353387936,1739808658676,-500.0,0.0001378,2]
[353387937,1739808658685,-500.0,0.0001378,2]
[353387938,1739808658695,-977.08,0.0001378,2]
[353387939,1739808658704,-500.0,0.0001378,2]
[353387940,1739808658713,-500.0,0.0001378,2]
[353387941,1739808658724,-557.15,0.0001378,2]
[353387942,1739808658733,-500.0,0.0001378,2]
[353387943,1739808658742,-729.94,0.0001378,2]
[353387944,1739808658755,-630.44,0.0001378,2]
[353387945,1739808658765,-1590.87,0.0001378,2]
[353387946,1739808658774,-500.0,0.0001378,2]
[353387947,1739808658783,-983.09,0.0001378,2]
[353387948,1739808658793,-500.0,0.0001378,2]
[353387949,1739808658805,-500.0,0.0001378,2]
[353387950,1739808658814,-1355.54,0.0001378,2]
[353387951,1739808658823,-500.0,0.0001378,2]
[353387952,1739808658832,-500.0,0.0001378,2]
[353387953,1739808658842,-500.0,0.0001378,2]
[353387954,1739808658851,-500.0,0.0001378,2]
[353387955,1739808658860,-500.0,0.0001378,2]
[353387956,1739808658870,-500.0,0.0001378,2]
[353387957,1739808658879,-500.0,0.0001378,2]
[353387958,1739808658888,-617.66,0.0001378,2]
[353387959,1739808658898,-890.71,0.0001378,2]
[353387960,1739808658907,-500.0,0.0001378,2]
[353387961,1739808658917,-664.2,0.0001378,2]
[353387962,1739808658926,-523.0,0.0001378,2]
[353387963,1739808658936,-500.0,0.0001378,2]
[353387964,1739808658945,-527.12,0.0001378,2]
[353387965,1739808658954,-702.93,0.0001378,2]
[353387966,1739808658964,-500.0,0.0001378,2]
[353387967,1739808658973,-500.0,0.0001378,2]
[353387968,1739808658983,-1175.53,0.0001378,2]
[353387969,1739808658992,-500.0,0.0001378,2]
[353387970,1739808659001,-503.95674388,0.0001378,2]
[353387971,1739808659010,-1296.19,0.0001378,2]
[353387972,1739808659020,-549.43,0.0001378,2]
[353387973,1739808659029,-1758.88,0.0001378,2]
[353387974,1739808659039,-506.98766438,0.0001378,2]
[353387975,1739808659049,-500.0,0.0001378,2]
[353387976,1739808659060,-500.0,0.0001378,2]
[353387977,1739808659070,-1468.21,0.0001378,2]
[353387978,1739808659080,-500.0,0.0001378,2]
[353387979,1739808659089,-931.33,0.0001378,2]
[353387980,1739808659099,-500.0,0.0001378,2]
[353387981,1739808659109,-676.42,0.0001378,2]
[353387982,1739808659118,-500.0,0.0001378,2]
[353387983,1739808659128,-500.0,0.0001378,2]
[353387984,1739808659137,-500.0,0.0001378,2]
[353387985,1739808659147,-495.33,0.0001378,2]
[353387986,1739808659156,-5971.23185838,0.000138,2]
[353387987,1739808659165,-800.0,0.000138,5]
[353387988,1739808659174,-1000.0,0.00013818,2]
[353387989,1739808659184,-793.51,0.0001386,2]
[353387990,1739808659193,-500.0,0.0001386,2]
[353387991,1739808659202,-680.64,0.0001386,2]
[353387992,1739808659212,-500.0,0.0001386,2]
[353387993,1739808659221,-696.72,0.0001386,2]
[353387994,1739808659231,-1360.71,0.0001386,2]
[353387995,1739808659240,-500.0,0.0001386,2]
[353387996,1739808659249,-637.48,0.0001386,2]
[353387997,1739808659259,-794.87,0.0001386,2]
[353387998,1739808659269,-1049.34,0.0001386,2]
[353387999,1739808659279,-2710.8,0.0001386,2]
[353388000,1739808659289,-669.02,0.0001386,2]
[353388001,1739808659305,-769.08,0.0001386,2]
[353388002,1739808659314,-572.98,0.0001386,2]
[353388003,1739808659324,-990.85,0.0001386,2]
[353388004,1739808659335,-500.0,0.0001386,2]
[353388005,1739808659344,-611.41,0.0001386,2]
[353388006,1739808659353,-1177.85,0.00013862,2]
[353388007,1739808659363,-1177.85,0.00013862,2]
[353388008,1739808659374,-796.63,0.00013862,2]
[353388009,1739808659384,-960.02,0.00013862,2]
[353388010,1739808659394,-1000.0,0.00013862,2]
[353388011,1739808659403,-888.72,0.00013862,2]
[353388012,1739808659413,-500.0,0.00013862,2]
[353388013,1739808659423,-817.16,0.00013862,2]